[Event "Titled Tuesday Blitz May 23 Late 2023"]
[White "Zampronha, Wladimir Camilo"]
[Black "Dobre, Claudiu-Cristian"]
[WhiteFideId "2103087"]
[BlackFideId "1211854"]
[WhiteElo "2176"]
[BlackElo "2207"]
[Result "0-1"]
[Round "04"]
[TimeControl "180+2"]
[Date "2023.05.23"]
[WhiteClock "0:00:00"]
[BlackClock "0:00:09"]

1. e4 {[%clk 0:03:00]}  Nc6 {[%clk 0:02:59]} 2. Nf3 {[%clk 0:03:00]}  d6 {[%clk 0:02:59]} 3. Bb5 {[%clk 0:02:59]}  Nf6 {[%clk 0:02:51]} 4. Qe2 {[%clk 0:02:55]}  Bd7 {[%clk 0:02:40]} 5. O-O {[%clk 0:02:49]}  e5 {[%clk 0:02:37]} 6. c3 {[%clk 0:02:48]}  a6 {[%clk 0:02:28]} 7. Ba4 {[%clk 0:02:43]}  Be7 {[%clk 0:02:20]} 8. d4 {[%clk 0:02:42]}  O-O {[%clk 0:02:14]} 9. d5 {[%clk 0:02:40]}  Nb8 {[%clk 0:02:06]} 10. Bxd7 {[%clk 0:02:38]}  Nbxd7 {[%clk 0:02:06]} 11. c4 {[%clk 0:02:39]}  Nh5 {[%clk 0:01:54]} 12. g3 {[%clk 0:02:34]}  f5 {[%clk 0:01:28]} 13. exf5 {[%clk 0:02:34]}  Rxf5 {[%clk 0:01:28]} 14. Nc3 {[%clk 0:02:33]}  Qe8 {[%clk 0:01:12]} 15. Be3 {[%clk 0:02:12]}  Qg6 {[%clk 0:01:09]} 16. Kh1 {[%clk 0:02:06]}  Raf8 {[%clk 0:01:05]} 17. Nd2 {[%clk 0:02:01]}  R5f7 {[%clk 0:01:01]} 18. Nde4 {[%clk 0:01:57]}  h6 {[%clk 0:00:48]} 19. a3 {[%clk 0:01:51]}  Ndf6 {[%clk 0:00:34]} 20. Nxf6+ {[%clk 0:01:50]}  Nxf6 {[%clk 0:00:31]} 21. Rad1 {[%clk 0:01:39]}  Ng4 {[%clk 0:00:27]} 22. Kg2 {[%clk 0:01:33]}  h5 {[%clk 0:00:17]} 23. h3 {[%clk 0:01:27]}  Nxe3+ {[%clk 0:00:16]} 24. Qxe3 {[%clk 0:01:28]}  Bg5 {[%clk 0:00:16]} 25. Qe2 {[%clk 0:01:27]}  h4 {[%clk 0:00:17]} 26. g4 {[%clk 0:01:27]}  Rf3 {[%clk 0:00:15]} 27. Ne4 {[%clk 0:01:24]}  R3f4 {[%clk 0:00:13]} 28. f3 {[%clk 0:01:21]}  Be7 {[%clk 0:00:13]} 29. Rde1 {[%clk 0:01:18]}  Rb8 {[%clk 0:00:13]} 30. Qf2 {[%clk 0:01:17]}  Qf7 {[%clk 0:00:13]} 31. Qa7 {[%clk 0:01:14]}  Qe8 {[%clk 0:00:13]} 32. Qe3 {[%clk 0:01:03]}  b5 {[%clk 0:00:11]} 33. c5 {[%clk 0:00:56]}  b4 {[%clk 0:00:12]} 34. cxd6 {[%clk 0:00:53]}  cxd6 {[%clk 0:00:10]} 35. axb4 {[%clk 0:00:44]}  Qb5 {[%clk 0:00:09]} 36. Qa7 {[%clk 0:00:29]}  Rb7 {[%clk 0:00:09]} 37. Qa8+ {[%clk 0:00:29]}  Rf8 {[%clk 0:00:09]} 38. Nc3 {[%clk 0:00:16]}  Rxa8 {[%clk 0:00:08]} 39. Nxb5 {[%clk 0:00:16]}  Rxb5 {[%clk 0:00:08]} 40. f4 {[%clk 0:00:16]}  Bf6 {[%clk 0:00:07]} 41. g5 {[%clk 0:00:16]}  Bd8 {[%clk 0:00:07]} 42. fxe5 {[%clk 0:00:15]}  Bxg5 {[%clk 0:00:07]} 43. exd6 {[%clk 0:00:16]}  Rb7 {[%clk 0:00:06]} 44. Rf5 {[%clk 0:00:12]}  Bf6 {[%clk 0:00:06]} 45. Re6 {[%clk 0:00:09]}  Rd7 {[%clk 0:00:06]} 46. Kf3 {[%clk 0:00:08]}  Rad8 {[%clk 0:00:06]} 47. Kg4 {[%clk 0:00:06]}  Rxd6 {[%clk 0:00:07]} 48. Kh5 {[%clk 0:00:06]}  Rxd5 {[%clk 0:00:07]} 49. Kg6 {[%clk 0:00:06]}  Rxf5 {[%clk 0:00:07]} 50. Kxf5 {[%clk 0:00:07]}  Kf7 {[%clk 0:00:07]} 51. Rxa6 {[%clk 0:00:07]}  Rd5+ {[%clk 0:00:08]} 52. Kf4 {[%clk 0:00:06]}  Rd4+ {[%clk 0:00:08]} 53. Kf3 {[%clk 0:00:05]}  Rxb4 {[%clk 0:00:08]} 54. Ra7+ {[%clk 0:00:05]}  Kg6 {[%clk 0:00:08]} 55. Ra6 {[%clk 0:00:05]}  Rb3+ {[%clk 0:00:08]} 56. Kg4 {[%clk 0:00:03]}  Rg3+ {[%clk 0:00:08]} 57. Kf4 {[%clk 0:00:00]}  Rxh3 {[%clk 0:00:09]} 0-1


[Site "https://www.chess.com"]

[Event "Titled Tuesday Blitz May 23 Late 2023"]
[White "Koutlas, Nikolaos"]
[Black "ThaBarWa"]
[WhiteFideId "25827138"]
[WhiteElo "2215"]
[BlackElo "2312"]
[Result "0-1"]
[Round "04"]
[TimeControl "180+2"]
[Date "2023.05.23"]
[WhiteClock "0:00:01"]
[BlackClock "0:00:22"]

1. e4 {[%clk 0:03:00]}  e6 {[%clk 0:03:00]} 2. d4 {[%clk 0:02:56]}  d5 {[%clk 0:03:00]} 3. e5 {[%clk 0:02:57]}  c5 {[%clk 0:03:00]} 4. c3 {[%clk 0:02:58]}  Nc6 {[%clk 0:03:00]} 5. Nf3 {[%clk 0:02:59]}  Bd7 {[%clk 0:03:01]} 6. Be2 {[%clk 0:02:59]}  f6 {[%clk 0:03:01]} 7. O-O {[%clk 0:02:59]}  fxe5 {[%clk 0:03:01]} 8. dxe5 {[%clk 0:03:00]}  Nh6 {[%clk 0:03:00]} 9. c4 {[%clk 0:02:58]}  d4 {[%clk 0:02:59]} 10. Bf4 {[%clk 0:02:57]}  Nf7 {[%clk 0:02:54]} 11. Re1 {[%clk 0:02:57]}  g5 {[%clk 0:02:49]} 12. Bg3 {[%clk 0:02:56]}  Bg7 {[%clk 0:02:49]} 13. Bd3 {[%clk 0:02:54]}  Qc7 {[%clk 0:02:17]} 14. Nbd2 {[%clk 0:02:22]}  O-O-O {[%clk 0:02:16]} 15. Ne4 {[%clk 0:02:20]}  Ncxe5 {[%clk 0:02:06]} 16. Nexg5 {[%clk 0:02:08]}  Nxg5 {[%clk 0:01:59]} 17. Nxe5 {[%clk 0:02:04]}  Bxe5 {[%clk 0:00:59]} 18. Bxe5 {[%clk 0:01:36]}  Qc6 {[%clk 0:00:59]} 19. Bxh8 {[%clk 0:01:19]}  Rxh8 {[%clk 0:01:00]} 20. Qh5 {[%clk 0:01:17]}  Rg8 {[%clk 0:00:57]} 21. Kf1 {[%clk 0:00:57]}  Be8 {[%clk 0:00:56]} 22. Qg4 {[%clk 0:00:52]}  h5 {[%clk 0:00:56]} 23. Qg3 {[%clk 0:00:48]}  h4 {[%clk 0:00:51]} 24. Qg4 {[%clk 0:00:46]}  Bf7 {[%clk 0:00:49]} 25. Re5 {[%clk 0:00:28]}  Nh7 {[%clk 0:00:34]} 26. Qe4 {[%clk 0:00:24]}  Bg6 {[%clk 0:00:32]} 27. Qxc6+ {[%clk 0:00:23]}  bxc6 {[%clk 0:00:33]} 28. Bxg6 {[%clk 0:00:22]}  Rxg6 {[%clk 0:00:34]} 29. Rxc5 {[%clk 0:00:19]}  Kc7 {[%clk 0:00:34]} 30. Re1 {[%clk 0:00:16]}  h3 {[%clk 0:00:35]} 31. gxh3 {[%clk 0:00:15]}  Ng5 {[%clk 0:00:35]} 32. Ra5 {[%clk 0:00:12]}  Nxh3 {[%clk 0:00:33]} 33. Rxa7+ {[%clk 0:00:11]}  Kb6 {[%clk 0:00:33]} 34. Rh7 {[%clk 0:00:07]}  Rg1+ {[%clk 0:00:30]} 35. Ke2 {[%clk 0:00:07]}  Nf4+ {[%clk 0:00:31]} 36. Kd2 {[%clk 0:00:07]}  Rg2 {[%clk 0:00:31]} 37. Rf1 {[%clk 0:00:05]}  e5 {[%clk 0:00:31]} 38. Re7 {[%clk 0:00:04]}  Ng6 {[%clk 0:00:31]} 39. Re6 {[%clk 0:00:04]}  Kc5 {[%clk 0:00:30]} 40. h4 {[%clk 0:00:04]}  Kxc4 {[%clk 0:00:27]} 41. b3+ {[%clk 0:00:04]}  Kd5 {[%clk 0:00:27]} 42. Rf6 {[%clk 0:00:02]}  Nxh4 {[%clk 0:00:27]} 43. Rf8 {[%clk 0:00:01]}  e4 {[%clk 0:00:27]} 44. a4 {[%clk 0:00:01]}  Nf3+ {[%clk 0:00:26]} 45. Ke2 {[%clk 0:00:01]}  d3+ {[%clk 0:00:27]} 46. Ke3 {[%clk 0:00:02]}  Ne5 {[%clk 0:00:24]} 47. Rf5 {[%clk 0:00:01]}  Rh2 {[%clk 0:00:23]} 48. f4 {[%clk 0:00:01]}  Re2# {[%clk 0:00:22]} 0-1


[Site "https://www.chess.com"]

[Event "Titled Tuesday Blitz May 23 Late 2023"]
[White "Bilan, Danila"]
[Black "Luxama, Jacques Muller"]
[WhiteFideId "24161918"]
[BlackFideId "11900113"]
[WhiteElo "2182"]
[BlackElo "1931"]
[Result "1-0"]
[Round "04"]
[TimeControl "180+2"]
[Date "2023.05.23"]
[WhiteClock "0:00:56"]
[BlackClock "0:02:05"]

1. d4 {[%clk 0:03:00]}  Nf6 {[%clk 0:02:58]} 2. Nf3 {[%clk 0:03:00]}  e6 {[%clk 0:02:58]} 3. g3 {[%clk 0:03:00]}  d5 {[%clk 0:02:58]} 4. Bg2 {[%clk 0:03:01]}  Be7 {[%clk 0:02:59]} 5. O-O {[%clk 0:03:01]}  O-O {[%clk 0:03:00]} 6. c4 {[%clk 0:03:01]}  dxc4 {[%clk 0:02:56]} 7. Qc2 {[%clk 0:03:00]}  a6 {[%clk 0:02:54]} 8. Qxc4 {[%clk 0:03:00]}  b5 {[%clk 0:02:53]} 9. Qc2 {[%clk 0:03:01]}  Bb7 {[%clk 0:02:53]} 10. Bf4 {[%clk 0:03:01]}  Bd6 {[%clk 0:02:49]} 11. Nc3 {[%clk 0:02:56]}  Nbd7 {[%clk 0:02:47]} 12. Rfd1 {[%clk 0:02:47]}  Rc8 {[%clk 0:02:44]} 13. Rac1 {[%clk 0:02:41]}  Bxf4 {[%clk 0:02:42]} 14. gxf4 {[%clk 0:02:41]}  c5 {[%clk 0:02:41]} 15. dxc5 {[%clk 0:02:24]}  Rxc5 {[%clk 0:02:42]} 16. Qd3 {[%clk 0:01:57]}  Qc7 {[%clk 0:02:40]} 17. e3 {[%clk 0:01:48]}  Ne4 {[%clk 0:02:26]} 18. Qxd7 {[%clk 0:01:41]}  Nxc3 {[%clk 0:02:25]} 19. Rxc3 {[%clk 0:01:34]}  Rxc3 {[%clk 0:02:23]} 20. bxc3 {[%clk 0:01:34]}  Qb8 {[%clk 0:02:17]} 21. Ne5 {[%clk 0:01:15]}  Bxg2 {[%clk 0:02:16]} 22. Kxg2 {[%clk 0:01:16]}  Qa8+ {[%clk 0:02:14]} 23. Qc6 {[%clk 0:01:16]}  Qb8 {[%clk 0:02:09]} 24. Rd7 {[%clk 0:01:02]}  f6 {[%clk 0:02:07]} 25. Qxe6+ {[%clk 0:01:00]}  Kh8 {[%clk 0:02:07]} 26. Nf7+ {[%clk 0:00:56]}  Kg8 {[%clk 0:02:07]} 27. Nh6+ {[%clk 0:00:56]}  Kh8 {[%clk 0:02:06]} 28. Qg8+ {[%clk 0:00:55]}  Rxg8 {[%clk 0:02:05]} 29. Nf7# {[%clk 0:00:56]} 1-0


[Site "https://www.chess.com"]

[Event "Titled Tuesday Blitz May 23 Late 2023"]
[White "Papayan, Oleg"]
[Black "Kostiukov, Alexandr"]
[WhiteFideId "4193911"]
[BlackFideId "14108100"]
[WhiteElo "2171"]
[BlackElo "2202"]
[Result "1-0"]
[Round "04"]
[TimeControl "180+2"]
[Date "2023.05.23"]
[WhiteClock "0:00:48"]
[BlackClock "0:00:00"]

1. e4 {[%clk 0:02:57]}  c5 {[%clk 0:02:59]} 2. d4 {[%clk 0:02:57]}  cxd4 {[%clk 0:02:58]} 3. Qxd4 {[%clk 0:02:58]}  Nc6 {[%clk 0:02:57]} 4. Qd3 {[%clk 0:02:58]}  Nf6 {[%clk 0:02:57]} 5. Nc3 {[%clk 0:02:59]}  g6 {[%clk 0:02:47]} 6. Nf3 {[%clk 0:02:59]}  Bg7 {[%clk 0:02:48]} 7. Be2 {[%clk 0:02:59]}  O-O {[%clk 0:02:47]} 8. O-O {[%clk 0:03:00]}  d5 {[%clk 0:02:24]} 9. Nxd5 {[%clk 0:02:56]}  Nxd5 {[%clk 0:02:23]} 10. exd5 {[%clk 0:02:57]}  Nb4 {[%clk 0:02:23]} 11. Qb3 {[%clk 0:02:57]}  a5 {[%clk 0:01:57]} 12. a3 {[%clk 0:02:58]}  Na6 {[%clk 0:01:45]} 13. Be3 {[%clk 0:02:58]}  Qd6 {[%clk 0:01:29]} 14. c4 {[%clk 0:02:52]}  Nc5 {[%clk 0:01:19]} 15. Qb5 {[%clk 0:02:47]}  b6 {[%clk 0:01:02]} 16. Nd4 {[%clk 0:01:24]}  Bxd4 {[%clk 0:00:20]} 17. Bxd4 {[%clk 0:01:25]}  Bd7 {[%clk 0:00:20]} 18. Bxc5 {[%clk 0:01:21]}  bxc5 {[%clk 0:00:21]} 19. Qb3 {[%clk 0:01:20]}  a4 {[%clk 0:00:14]} 20. Qc3 {[%clk 0:01:12]}  Rab8 {[%clk 0:00:14]} 21. Bd1 {[%clk 0:00:51]}  Rb7 {[%clk 0:00:09]} 22. Re1 {[%clk 0:00:48]}  Rfb8 {[%clk 0:00:08]} 23. Re2 {[%clk 0:00:48]}  h5 {[%clk 0:00:00]} 24. h3 {[%clk 0:00:48]} 1-0


[Site "https://www.chess.com"]

[Event "Titled Tuesday Blitz May 23 Late 2023"]
[White "Yeritsyan, Hayk"]
[Black "Romero Ruscalleda, Josep"]
[WhiteFideId "13307320"]
[BlackFideId "2231859"]
[WhiteElo "2447"]
[BlackElo "2183"]
[Result "1-0"]
[Round "04"]
[TimeControl "180+2"]
[Date "2023.05.23"]
[WhiteClock "0:02:36"]
[BlackClock "0:01:26"]

1. d4 {[%clk 0:03:00]}  g6 {[%clk 0:03:00]} 2. Nf3 {[%clk 0:03:00]}  Bg7 {[%clk 0:03:01]} 3. Bf4 {[%clk 0:03:00]}  d6 {[%clk 0:03:01]} 4. h3 {[%clk 0:03:01]}  Nf6 {[%clk 0:03:00]} 5. e3 {[%clk 0:03:01]}  O-O {[%clk 0:03:00]} 6. c3 {[%clk 0:03:02]}  Nbd7 {[%clk 0:02:59]} 7. Be2 {[%clk 0:03:03]}  Re8 {[%clk 0:02:58]} 8. O-O {[%clk 0:03:03]}  c6 {[%clk 0:02:54]} 9. Bh2 {[%clk 0:03:02]}  Qb6 {[%clk 0:02:52]} 10. Nbd2 {[%clk 0:03:02]}  Qxb2 {[%clk 0:02:48]} 11. Nc4 {[%clk 0:03:02]}  Qxc3 {[%clk 0:02:46]} 12. Rc1 {[%clk 0:03:02]}  Qb4 {[%clk 0:02:45]} 13. Rb1 {[%clk 0:03:02]}  Qc3 {[%clk 0:02:27]} 14. Rb3 {[%clk 0:03:01]}  Ne4 {[%clk 0:02:24]} 15. Rxc3 {[%clk 0:03:00]}  Nxc3 {[%clk 0:02:25]} 16. Qc2 {[%clk 0:03:01]}  Nxe2+ {[%clk 0:02:25]} 17. Qxe2 {[%clk 0:03:02]}  Nb6 {[%clk 0:02:23]} 18. Rb1 {[%clk 0:02:55]}  Be6 {[%clk 0:02:19]} 19. Na5 {[%clk 0:02:48]}  Rab8 {[%clk 0:02:14]} 20. Bg3 {[%clk 0:02:47]}  Rec8 {[%clk 0:02:10]} 21. Rc1 {[%clk 0:02:47]}  Nd7 {[%clk 0:02:02]} 22. e4 {[%clk 0:02:45]}  Nf6 {[%clk 0:01:59]} 23. e5 {[%clk 0:02:45]}  dxe5 {[%clk 0:01:57]} 24. Bxe5 {[%clk 0:02:45]}  Ra8 {[%clk 0:01:55]} 25. Nxb7 {[%clk 0:02:45]}  Bh6 {[%clk 0:01:46]} 26. Re1 {[%clk 0:02:41]}  Nd5 {[%clk 0:01:46]} 27. Nc5 {[%clk 0:02:40]}  Nc3 {[%clk 0:01:42]} 28. Qd3 {[%clk 0:02:36]}  Nxa2 {[%clk 0:01:26]} 29. Nxe6 {[%clk 0:02:36]}  fxe6 {[%clk 0:01:26]} 30. Qb3 {[%clk 0:02:36]} 1-0


[Site "https://www.chess.com"]

[Event "Titled Tuesday Blitz May 23 Late 2023"]
[White "Kaplan, Avi Harrison"]
[Black "KVAIDAN"]
[WhiteFideId "30934559"]
[WhiteElo "1983"]
[BlackElo "2292"]
[Result "1-0"]
[Round "04"]
[TimeControl "180+2"]
[Date "2023.05.23"]
[WhiteClock "0:02:42"]
[BlackClock "0:02:46"]

1. d4 {[%clk 0:02:55]}  e6 {[%clk 0:02:59]} 2. c3 {[%clk 0:02:56]}  f5 {[%clk 0:02:56]} 3. Nh3 {[%clk 0:02:49]}  Nf6 {[%clk 0:02:56]} 4. g3 {[%clk 0:02:49]}  Be7 {[%clk 0:02:56]} 5. Nf4 {[%clk 0:02:49]}  O-O {[%clk 0:02:56]} 6. h4 {[%clk 0:02:48]}  d6 {[%clk 0:02:55]} 7. Bg2 {[%clk 0:02:45]}  c6 {[%clk 0:02:54]} 8. h5 {[%clk 0:02:45]}  e5 {[%clk 0:02:54]} 9. dxe5 {[%clk 0:02:42]}  dxe5 {[%clk 0:02:54]} 10. Qb3+ {[%clk 0:02:42]}  Kh8 {[%clk 0:02:46]} 11. Ng6+ {[%clk 0:02:42]} 1-0


[Site "https://www.chess.com"]

[Event "Titled Tuesday Blitz May 23 Late 2023"]
[White "Wizard_of_Odds"]
[Black "Martinez, Ayelen"]
[BlackFideId "118702"]
[WhiteElo "2437"]
[BlackElo "2125"]
[Result "1-0"]
[Round "04"]
[TimeControl "180+2"]
[Date "2023.05.23"]
[WhiteClock "0:00:07"]
[BlackClock "0:00:01"]

1. d4 {[%clk 0:02:59]}  Nf6 {[%clk 0:02:59]} 2. c4 {[%clk 0:02:59]}  g6 {[%clk 0:03:00]} 3. Nc3 {[%clk 0:02:59]}  Bg7 {[%clk 0:03:01]} 4. e4 {[%clk 0:02:59]}  Bf8 {[%clk 0:03:02]} 5. e5 {[%clk 0:02:56]}  Ng8 {[%clk 0:03:01]} 6. f4 {[%clk 0:02:53]}  d6 {[%clk 0:02:59]} 7. Nf3 {[%clk 0:02:50]}  h5 {[%clk 0:02:59]} 8. Be3 {[%clk 0:02:47]}  Nh6 {[%clk 0:02:59]} 9. Bd3 {[%clk 0:02:43]}  Ng4 {[%clk 0:02:53]} 10. Bg1 {[%clk 0:02:39]}  dxe5 {[%clk 0:02:43]} 11. fxe5 {[%clk 0:02:32]}  Bh6 {[%clk 0:02:41]} 12. Qe2 {[%clk 0:02:29]}  c5 {[%clk 0:02:20]} 13. d5 {[%clk 0:02:27]}  Bg7 {[%clk 0:01:46]} 14. h3 {[%clk 0:02:25]}  Nh6 {[%clk 0:01:44]} 15. Bxc5 {[%clk 0:02:23]}  Na6 {[%clk 0:01:38]} 16. Bd4 {[%clk 0:02:20]}  Nf5 {[%clk 0:01:37]} 17. Bxf5 {[%clk 0:02:15]}  Bxf5 {[%clk 0:01:38]} 18. a3 {[%clk 0:02:10]}  Rc8 {[%clk 0:01:36]} 19. b3 {[%clk 0:02:03]}  Nc5 {[%clk 0:01:19]} 20. Bxc5 {[%clk 0:02:01]}  Rxc5 {[%clk 0:01:20]} 21. O-O {[%clk 0:01:56]}  Rc8 {[%clk 0:01:08]} 22. Nd4 {[%clk 0:01:54]}  Qb6 {[%clk 0:01:07]} 23. Qf2 {[%clk 0:01:51]}  Bxe5 {[%clk 0:01:04]} 24. Rad1 {[%clk 0:01:38]}  Bxd4 {[%clk 0:00:39]} 25. Qxd4 {[%clk 0:01:37]}  Bc2 {[%clk 0:00:37]} 26. d6 {[%clk 0:00:46]}  Qxd4+ {[%clk 0:00:20]} 27. Rxd4 {[%clk 0:00:44]}  exd6 {[%clk 0:00:20]} 28. b4 {[%clk 0:00:37]}  O-O {[%clk 0:00:20]} 29. Nb5 {[%clk 0:00:35]}  d5 {[%clk 0:00:14]} 30. c5 {[%clk 0:00:29]}  Rce8 {[%clk 0:00:09]} 31. Nd6 {[%clk 0:00:24]}  Re2 {[%clk 0:00:08]} 32. Rf2 {[%clk 0:00:23]}  Re1+ {[%clk 0:00:07]} 33. Rf1 {[%clk 0:00:21]}  Re2 {[%clk 0:00:07]} 34. Rxd5 {[%clk 0:00:20]}  Rd8 {[%clk 0:00:04]} 35. Rf2 {[%clk 0:00:14]}  Re1+ {[%clk 0:00:02]} 36. Rf1 {[%clk 0:00:13]}  Re2 {[%clk 0:00:03]} 37. Rf2 {[%clk 0:00:13]}  Re1+ {[%clk 0:00:03]} 38. Kh2 {[%clk 0:00:13]}  Be4 {[%clk 0:00:03]} 39. Rd4 {[%clk 0:00:09]}  Bc6 {[%clk 0:00:03]} 40. Rdf4 {[%clk 0:00:08]}  Rd7 {[%clk 0:00:03]} 41. Rxf7 {[%clk 0:00:08]}  Rxf7 {[%clk 0:00:04]} 42. Nxf7 {[%clk 0:00:08]}  Kg7 {[%clk 0:00:03]} 43. Ng5 {[%clk 0:00:08]}  Ra1 {[%clk 0:00:04]} 44. Rb2 {[%clk 0:00:07]}  Rb1 {[%clk 0:00:03]} 45. Rxb1 {[%clk 0:00:07]}  a5 {[%clk 0:00:01]} 46. b5 {[%clk 0:00:07]} 1-0


[Site "https://www.chess.com"]

[Event "Titled Tuesday Blitz May 23 Late 2023"]
[White "lluiss"]
[Black "QuiesPrecatio"]
[WhiteElo "2267"]
[BlackElo "2435"]
[Result "0-1"]
[Round "04"]
[TimeControl "180+2"]
[Date "2023.05.23"]
[WhiteClock "0:00:33"]
[BlackClock "0:01:09"]

1. Nf3 {[%clk 0:03:00]}  Nf6 {[%clk 0:02:57]} 2. d4 {[%clk 0:02:59]}  g6 {[%clk 0:02:57]} 3. g3 {[%clk 0:02:59]}  Bg7 {[%clk 0:02:57]} 4. Bg2 {[%clk 0:02:59]}  O-O {[%clk 0:02:58]} 5. O-O {[%clk 0:02:59]}  d5 {[%clk 0:02:59]} 6. c4 {[%clk 0:02:58]}  dxc4 {[%clk 0:03:00]} 7. Na3 {[%clk 0:02:56]}  Nc6 {[%clk 0:03:00]} 8. Nxc4 {[%clk 0:02:55]}  Be6 {[%clk 0:03:00]} 9. b3 {[%clk 0:02:46]}  a5 {[%clk 0:03:00]} 10. Bb2 {[%clk 0:02:40]}  Bd5 {[%clk 0:03:00]} 11. a4 {[%clk 0:02:33]}  Nb4 {[%clk 0:02:48]} 12. e3 {[%clk 0:02:29]}  c6 {[%clk 0:02:48]} 13. Nce5 {[%clk 0:02:27]}  Qb6 {[%clk 0:02:40]} 14. Bc3 {[%clk 0:02:22]}  Rfd8 {[%clk 0:02:36]} 15. Rb1 {[%clk 0:02:18]}  Ne4 {[%clk 0:02:35]} 16. Ba1 {[%clk 0:02:10]}  Qa6 {[%clk 0:02:14]} 17. Re1 {[%clk 0:02:06]}  Rac8 {[%clk 0:02:03]} 18. Bf1 {[%clk 0:02:02]}  Qa7 {[%clk 0:01:59]} 19. Nd3 {[%clk 0:01:59]}  Na6 {[%clk 0:01:50]} 20. Nd2 {[%clk 0:01:30]}  c5 {[%clk 0:01:29]} 21. dxc5 {[%clk 0:01:20]}  Naxc5 {[%clk 0:01:30]} 22. Bxg7 {[%clk 0:01:19]}  Kxg7 {[%clk 0:01:31]} 23. Nxe4 {[%clk 0:01:05]}  Bxe4 {[%clk 0:01:29]} 24. Qd2 {[%clk 0:00:45]}  Nxd3 {[%clk 0:01:22]} 25. Red1 {[%clk 0:00:45]}  Qb6 {[%clk 0:01:15]} 26. b4 {[%clk 0:00:42]}  Nxb4 {[%clk 0:01:09]} 27. Qb2+ {[%clk 0:00:42]}  Kg8 {[%clk 0:01:09]} 28. Rxd8+ {[%clk 0:00:41]}  Rxd8 {[%clk 0:01:10]} 29. Bc4 {[%clk 0:00:33]}  Bxb1 {[%clk 0:01:09]} 0-1


[Site "https://www.chess.com"]

[Event "Titled Tuesday Blitz May 23 Late 2023"]
[White "Brown, Raehanna"]
[Black "Vega Gutierrez, Sabrina"]
[WhiteFideId "7402740"]
[BlackFideId "2219026"]
[WhiteElo "1655"]
[BlackElo "2209"]
[Result "0-1"]
[Round "04"]
[TimeControl "180+2"]
[Date "2023.05.23"]
[WhiteClock "0:00:57"]
[BlackClock "0:00:41"]

1. c4 {[%clk 0:03:00]}  e5 {[%clk 0:02:58]} 2. Nc3 {[%clk 0:02:59]}  d6 {[%clk 0:02:54]} 3. g3 {[%clk 0:02:54]}  f5 {[%clk 0:02:54]} 4. Bg2 {[%clk 0:02:54]}  Nf6 {[%clk 0:02:54]} 5. d3 {[%clk 0:02:55]}  Be7 {[%clk 0:02:50]} 6. e3 {[%clk 0:02:50]}  c6 {[%clk 0:02:50]} 7. Nge2 {[%clk 0:02:51]}  O-O {[%clk 0:02:50]} 8. O-O {[%clk 0:02:52]}  Be6 {[%clk 0:02:48]} 9. Qd2 {[%clk 0:02:51]}  Na6 {[%clk 0:02:40]} 10. f4 {[%clk 0:02:51]}  Qd7 {[%clk 0:02:25]} 11. a3 {[%clk 0:02:49]}  Nc7 {[%clk 0:02:20]} 12. b4 {[%clk 0:02:48]}  Rae8 {[%clk 0:02:08]} 13. Bb2 {[%clk 0:02:46]}  Bf7 {[%clk 0:02:03]} 14. Rad1 {[%clk 0:02:35]}  exf4 {[%clk 0:01:48]} 15. exf4 {[%clk 0:02:34]}  d5 {[%clk 0:01:46]} 16. Nb1 {[%clk 0:02:05]}  dxc4 {[%clk 0:01:15]} 17. dxc4 {[%clk 0:02:01]}  Qxd2 {[%clk 0:01:14]} 18. Nxd2 {[%clk 0:02:01]}  Ng4 {[%clk 0:01:14]} 19. Rf3 {[%clk 0:01:45]}  Bxb4 {[%clk 0:00:44]} 20. Nc3 {[%clk 0:00:59]}  Bc5+ {[%clk 0:00:42]} 21. Kf1 {[%clk 0:00:57]}  Nxh2# {[%clk 0:00:41]} 0-1


[Site "https://www.chess.com"]